Cogmind - Beta 13 *** ADVENTURER MODE // 2024.04.19 @ 21:33:47 Player: IlyaSM Result: Destroyed by as-77622 with Assembled Rifle Performance ------------- Evolutions (0) 0 Regions Visited (2) 400 Robots Destroyed (5) 25 Value Destroyed (117) 117 Prototype IDs (3) 60 Alien Tech Used (0) 0 Bonus (0) 0 TOTAL SCORE: 602 Bonus ------- None Cogmind --------- Core Integrity 0/250 Matter 169/300 Energy 104/200 System Corruption 1% Temperature Cool (2) Movement Hovering (60) Location -10/Mines Parts ------- > --- POWER (1) -------- (None) > --- PROPULSION (2) --- Airjet > --- UTILITY (2) ------ Small Battery Experimental Sensor Array > --- WEAPON (2) ------- Shock Rifle > --- INVENTORY (5) ---- Cesium-ion Thruster Hardlight Generator Medium Laser Ion Cannon Peak State ------------ > --- POWER ------------ Light Ion Engine > --- PROPULSION ------- Airjet Cesium-ion Thruster > --- UTILITY ---------- Structural Scanner Experimental Sensor Array > --- WEAPON ----------- Shock Rifle Ion Cannon > --- INVENTORY -------- Flight Unit Heat Sink Small Battery Hardlight Generator Medium Laser [Rating: 23] Favorites ----------- Power Light Ion Engine Engine Light Ion Engine Propulsion Wheel Leg Aluminum Leg Wheel Wheel Hover Unit Airjet Flight Unit Flight Unit Utility Structural Scanner Device Structural Scanner Storage Small Battery Weapon Medium Laser Energy Gun Medium Laser Energy Cannon Ion Cannon Launcher Rocket Launcher Slashing Weapon Mining Claw Build | -11 -10 -10 ------- Run | Yrd Mat Min Slots Evolved . | . . . Power . | . . . Propulsion . | . . . Utility . | . . . Weapon . | . . . Parts Attached 30 | 11 4 15 Power 1 | 1 . . Engine 1 | 1 . . Core . | . . . Reactor . | . . . Propulsion 17 | 8 2 7 Treads . | . . . Leg 4 | 3 . 1 Wheel 6 | 5 1 . Hover 2 | . . 2 Flight 5 | . 1 4 Utility 4 | . 2 2 Device 3 | . 2 1 Storage 1 | . . 1 Processor . | . . . Hackware . | . . . Protection . | . . . Artifact . | . . . Weapon 8 | 2 . 6 Energy Gun 5 | 2 . 3 Energy Cannon 1 | . . 1 Ballistic Gun . | . . . Ballistic Cannon . | . . . Launcher 1 | . . 1 Special Weapon . | . . . Impact Weapon . | . . . Slashing Weapon 1 | . . 1 Piercing Weapon . | . . . Special Melee Weapon . | . . . Unidentified Prototypes 1 | . . 1 Corrupted Parts 1 | . 1 . System Corruption 1 | . 1 . Parts Lost 5 | . . 5 Power 1 | . . 1 Propulsion 1 | . . 1 Utility 1 | . . 1 Weapon 2 | . . 2 Highest Loss Streak 4 | . . 4 To Critical Strikes . | . . . Average Slot Usage (%) 87 | . 89 86 Engine 10 | . 14 8 Leg 1 | . . 1 Wheel 7 | . 19 3 Hover 3 | . . 5 Flight 13 | . 8 15 Device 21 | . 17 22 Storage 3 | . . 4 Energy Gun 16 | . 28 12 Energy Cannon 5 | . . 7 Slashing Weapon 2 | . . 2 Naked Turns . | . . . Heaviest Build 14 | 7 9 14 Greatest Support 20 | 20 20 10 Greatest Overweight (x) 2 | . . 2 Average Overweight (x) . | . . . Largest Inventory Capacity 5 | 5 5 5 Average Capacity 5 | 5 5 5 Most Carried 5 | 5 5 5 Average Carried 3 | 2 4 4 Final Capacity 5 | 5 5 5 Final Carried 4 | 4 4 4 Class Distribution -------------------- 100% | Mutant Dominant Class ---------------- Mutant | -10/Materials Mutant | -10/Mines Resources | -11 -10 -10 ----------- Run | Yrd Mat Min Matter Collected 383 | 310 4 69 Remotely . | . . . Salvage Created 115 | 46 . 69 Parts 4 | 1 . 3 Haulers Intercepted . | . . . Recyclers Shooed . | . . . Parts Field Recycled . | . . . Retrieved Matter . | . . . Parts Self-Destructed . | . . . Prevented . | . . . Kills | -11 -10 -10 ------- Run | Yrd Mat Min Combat Hostiles Destroyed 5 | 1 . 4 Guns 4 | 1 . 3 Cannons 1 | . . 1 Classes Destroyed 3 | 1 . 2 Swarmer 3 | . . 3 Grunt 1 | 1 . . Demolisher 1 | . . 1 Best Kill Streak 3 | 1 . 3 Combat Bots Only 3 | 1 . 3 Max Kills in Single Turn 1 | 1 . 1 Gunslinging . | . . . Exploded . | . . . Melee . | . . . Uniques/NPCs Destroyed . | . . . Combat | -11 -10 -10 -------- Run | Yrd Mat Min Hostile Shots Fired 66 | 3 2 61 Missed 18 | . 1 17 Damage Taken 692 | 24 15 653 Core 251 | . 11 240 Absorbed by Shields . | . . . Ignored by Resistances 194 | 6 3 185 Core Remaining (%) 100 | 100 . . Volleys Fired 25 | 2 . 23 Largest 2 | 2 . 2 Hottest 90 | 90 . 90 Shots Fired 33 | 4 . 29 Gun 27 | 4 . 23 Cannon 3 | . . 3 Launcher 3 | . . 3 Special . | . . . Kinetic . | . . . Thermal 18 | 2 . 16 Explosive 3 | . . 3 Electromagnetic 12 | 2 . 10 Robot Hit Streak 10 | 4 . 10 Robot Miss Streak 4 | . . 4 Penetration Max . | . . . Secondary Targets 1 | . . 1 Max Gunslinging Chain 1 | . . 1 Shots Hit Robots 17 | 4 . 13 Core Hits 15 | 2 . 13 Critical Kills . | . . . Critical Parts Destroyed . | . . . Critical Strikes . | . . . Melee Attacks . | . . . Impact . | . . . Slashing . | . . . Piercing . | . . . Sneak Attacks . | . . . Combat Hostiles . | . . . Follow-up Attacks . | . . . Damage Inflicted 340 | 51 9 280 Guns 180 | 51 . 129 Cannons 69 | . . 69 Explosions 80 | . . 80 Melee . | . . . Ramming 11 | . 9 2 Kinetic . | . . . Thermal 146 | 26 . 120 Explosive 80 | . . 80 Electromagnetic 103 | 25 . 78 Impact . | . . . Slashing . | . . . Piercing . | . . . Highest Corruption 1 | . 1 1 Average Corruption 1 | . 1 1 Corruption Purged . | . . . Corruption Blocked . | . . . Effects 6 | . . 6 Message Errors 1 | . . 1 Matter Fused 1 | . . 1 Energy Discharges 2 | . . 2 Data Loss (major) 2 | . . 2 Overload Shots . | . . . Overflow Damage . | . . . Projectiles . | . . . Explosions . | . . . Melee . | . . . Knockbacks . | . . . Impact . | . . . Kinetic . | . . . Secondary . | . . . Self-Inflicted Damage 5 | . 4 1 Shots . | . . . Rammed 2 | . 1 1 Targets Rammed 2 | . 1 1 Kicked . | . . . Crushed . | . . . Highest Temperature 72 | 72 . 39 Average Temperature 22 | 40 . 12 Received Heat Transfer 69 | 18 9 42 Siege Activations . | . . . Robots Corrupted . | . . . Combat Hostiles . | . . . Parts Fried . | . . . Impact Corruptions . | . . . Robots Melted . | . . . Combat Hostiles . | . . . Parts Melted . | . . . Heat Transferred 333 | 74 . 259 Parts Sabotaged . | . . . Parts Stolen . | . . . Parts Stripped . | . . . Power Chain Reactions . | . . . Alert | -11 -10 -10 ------- Run | Yrd Mat Min Peak Influence 145 | 20 29 145 Initial 11 | . 11 9 Average 58 | 1 13 94 Maximum Alert Level . | . . . Low Security (%) 100 | 100 100 100 Level 1 . | . . . Level 2 . | . . . Level 3 . | . . . Level 4 . | . . . Level 5 . | . . . High Security . | . . . Max Security . | . . . Squads Dispatched 2 | . 2 . Investigation 2 | . 2 . Extermination . | . . . Reinforcement . | . . . Assault . | . . . Garrison . | . . . Intercept . | . . . Searches Triggered . | . . . Construction Impeded . | . . . Haulers Reinforced . | . . . Active Scanning Responses . | . . . Cargo Convoy Interrupts . | . . . Stealth | -11 -10 -10 --------- Run | Yrd Mat Min Distress Signals . | . . . Communications Jammed . | . . . Distress Signals . | . . . Times Spotted 22 | 1 3 18 Peak Tracking Total 10 | 1 3 10 Tactical Retreats 4 | . 1 3 Traps | -11 -10 -10 ------- Run | Yrd Mat Min Traps Triggered 1 | . . 1 Indirectly . | . . . Trap Hack Attempts . | . . . Triggered . | . . . Disarmed . | . . . Reprogrammed . | . . . Reused . | . . . Traps Extracted . | . . . Installed . | . . . Triggered . | . . . Machines | -11 -10 -10 ---------- Run | Yrd Mat Min Machines Disabled . | . . . Max in Single Turn . | . . . Machines Repaired . | . . . Machines Dismantled . | . . . Machines Sabotaged . | . . . Overloaded Fab Kills . | . . . Hacking | -11 -10 -10 --------- Run | Yrd Mat Min Machines Accessed 4 | . 3 1 Terminals 2 | . 2 . Fabricators . | . . . Repair Stations . | . . . Recycling Units 1 | . 1 . Scanalyzers . | . . . Garrison Access . | . . . Total Hacks 13 | . 12 1 Successful 12 | . 11 1 Failed 1 | . 1 . Catastrophic . | . . . Database Lockouts . | . . . Manual . | . . . Terminals 8 | . 8 . Fabricators . | . . . Repair Stations . | . . . Recycling Units 4 | . 4 . Scanalyzers . | . . . Garrison Access . | . . . Terminal Hacks 8 | . 7 1 Record 3 | . 3 . Prototype ID Bank 1 | . 1 . Open Door 1 | . . 1 Emergency Access Points 1 | . 1 . Alert Level 1 | . 1 . Hauler Manifests 1 | . 1 . Fabricator Hacks . | . . . Repair Station Hacks . | . . . Recycling Unit Hacks 4 | . 4 . Recycle Component 1 | . 1 . Process 1 | . 1 . Report Inventory 2 | . 2 . Scanalyzer . | . . . Garrison Access Hacks . | . . . Unauthorized Hacks . | . . . Terminals . | . . . Fabricators . | . . . Repair Stations . | . . . Recycling Units . | . . . Scanalyzers . | . . . Garrison Access . | . . . Data Cores Recovered . | . . . Used . | . . . Hacking Detections 2 | . 2 . Full Trace Events 2 | . 2 . Feedback Events . | . . . Feedback Blocked . | . . . Robot Schematics Acquired . | . . . Robots Built . | . . . Authchips . | . . . Time . | . . . Total Robot Build Rating . | . . . Part Schematics Acquired . | . . . Parts Built . | . . . Authchips . | . . . Time . | . . . Total Part Build Rating . | . . . Parts Repaired . | . . . Time . | . . . Parts Recycled 1 | . 1 . Recycled Matter 61 | . 61 . Retrieved Matter . | . . . Retrieved Components . | . . . Parts Scanalyzed . | . . . Part Schematics Acquired . | . . . Parts Damaged . | . . . Bothacking | -11 -10 -10 ------------ Run | Yrd Mat Min Used RIF Installer . | . . . Robots Hacked . | . . . Non-combat . | . . . Combat . | . . . Robot Hacks Applied . | . . . Relay Couplers Released . | . . . Fabnet Peak Effective % . | . . . Robots Rewired . | . . . Allies Hacked . | . . . Hacks Repelled . | . . . Allies | -11 -10 -10 -------- Run | Yrd Mat Min Total Allies . | . . . Largest Group . | . . . Highest-Rated Group . | . . . Highest-Rated Ally . | . . . Total Orders . | . . . Ally Attacks . | . . . Total Damage . | . . . Kills . | . . . Allies Corrupted . | . . . Allies Melted . | . . . Intel | -11 -10 -10 ------- Run | Yrd Mat Min Robot Analysis Total . | . . . Derelict Logs Recovered 1 | . . 1 Drone Launches . | . . . Drone Recoveries . | . . . Exploration | -11 -10 -10 ------------- Run | Yrd Mat Min Turns Passed 616 | 135 119 362 Spaces Moved 622 | 121 120 381 Core 44 | 44 . . Treads . | . . . Legs 33 | . . 33 Wheels 210 | 77 120 13 Hover 195 | . . 195 Flight 140 | . . 140 Fastest Speed 37 | 50 80 37 Average Speed 73 | 69 80 72 Slowest Speed 205 | 80 80 205 Overloaded Moves . | . . . Propulsion Burnouts . | . . . Robots Hopped 1 | . . 1 Cave-ins Triggered . | . . . Exploration Rate (%) 33 | 5 19 77 Regions Visited 2 Branch Regions 1 Pre-discovered Areas 1 | . . 1 Known Exits Taken . | . . . Unknown Exits Taken 2 | 1 1 . Scrap Searched . | . . . Spaces Dug 12 | . . 12 Terrain Destroyed 25 | . . 25 Melee . | . . . Projectile . | . . . AOE 25 | . . 25 Terrain Rammed . | . . . Walls Destroyed . | . . . Machines Disabled . | . . . Actions | -11 -10 -10 --------- Run | Yrd Mat Min Total 747 | 165 143 439 Wait 38 | 23 13 2 Move 618 | 120 119 379 Hop 1 | . . 1 Pick Up 21 | 9 4 8 Fast Attach 1 | . . 1 Attach 12 | 5 3 4 Detach 3 | . 1 2 Swap 17 | 6 1 10 Drop 9 | . 1 8 Fire 25 | 2 . 23 Melee . | . . . Ram 2 | . 1 1 Kick . | . . . Crush . | . . . Escape Stasis . | . . . Rewire . | . . . Trap . | . . . Miscellaneous . | . . . Route ------- -11/Scrapyard -10/Materials -10/Mines (discovered 1 exit: [*Mat]) History --------- Turn | Location | Event 2 | -11/Scrapyard | Met Revision 17 120 | -11/Scrapyard | Discovered new exit (range 8) 136 | -11/Scrapyard | Entered Materials 197 | -10/Materials | Discovered new exit (range 9) 255 | -10/Materials | Entered Mines 314 | -10/Mines | Build established: Mutant 368 | -10/Mines | Found a damaged Exp. Sensor Array with a note attached 369 | -10/Mines | Found Prototype Device 370 | -10/Mines | Identified Exp. Sensor Array 384 | -10/Mines | Met a Derelict who couldn't figure out how to use a Trap Extractor 431 | -10/Mines | Learned location of Zion (-7) 473 | -10/Mines | Assembled infested the area 478 | -10/Mines | Received a Rocket Launcher from a helpful Derelict 479 | -10/Mines | Assisted by a Guerilla fighting off Assembled 483 | -10/Mines | Discovered new exit (range 11) 489 | -10/Mines | Core integrity fell below 50% 495 | -10/Mines | Core integrity fell below 20% 521 | -10/Mines | Lost 4 parts (1p1n1u1w) 617 | -10/Mines | Destroyed by as-77622 with Assembled Rifle Last Messages --------------- Flight Unit destroyed. K-01 Serf collects debris. The unstable cave ceiling collapses. D-53 Grenadier destroyed. The unstable cave ceiling collapses. D-53 Grenadier destroyed. The unstable cave ceiling collapses. K-01 Serf collects debris. The unstable cave ceiling collapses. K-01 Serf collects debris. = #KBSXP117GHWHK ADR9X0/GPI0YIHC IO-TOB(h): "I'll hold them off! Go on ahead or try to find another way!" System corrupted: Energy discharge (-42). Acquired 21 matter. K-01 Serf collects debris. Slammed into K-01 Serf. System corrupted: Energy discharge (-58). [Achievement: Crack Shot] [Achievement: First Step to Greatness] Map ----- +----------------------------------------------------+ | ????????????????????????????????????????????????? | | ????????????????????????????????????????????????? | | ????????????????????????????????????????????????? | | #########???????????????????????????????????????? | | ##########?#####?????????????????#######????????? | | # ##########???????????????########????????? | | ##### ####?????????????? ##????????? | | #### #####?????????### < ##????????? | | #### ################ ##????????? | | ## ############## #?????????? | | #### ## ??????????? | | #### # ##%##?????????? | | ### ? #### ## ? ##%##?????????? | | ##### #### ## = =[##?????????? | | ###### ### # ? # ## ###?????????? | | ###?## ## # ##???????????? | | # ##?### ### # # #? ####?????????? | | ## #### ? ### # ##### ##?????????? | | ## #### ##### # # ## ##?????????? | | ### ##### ############ ### ## ##?????????? | | #### ###############?### ## """ ##?????????? | | ### ###?######??????### ## """ ##?????????? | | ##???????????????###### ## """ ##?????????? | | ##???????????????###### ### #??????????? | | ######??????????????????# g #########??????????? | | ######?????????????####?#@#####??#####??????????? | | ##????????????????## ##a#####?????????????????? | | ##????????????????# #?????????????????????? | | ##????????????????# ##????????????????????? | | ##????????????????## ##???????????????????? | | ##?????????????????## #???????????????????? | | ##??????????????????##### ##??????????????????? | | #????######?????????????## #??????????????????? | | #????######??????????????# #??????????????????? | | ?????# ?????????????##a #??????????????????? | | ????## ????????????###? ##??????????????????? | | ????## ##???????????## ?? ##???????????????????? | | ????## ##???????????# ? #????????????????????? | | ????## ##???????????# ?? #????????????????????? | | ###### ##??????????## ? ##????????????????????? | | ###### ###????????## ? ###?????????????????????? | | # ### ####???????# ##???????????????????????? | | ###???????# #????????????????????????? | | ###??????## #???????????????????????? | | ####??????## #???????????????????????? | | ###???????# =%???????????????????????? | | ### ##???????# *=#??????????????????????? | | #### ##??????? =%=??????????????????????? | | ?### ######????! !%%?????????????????????? | | #?## ###### ???? =!????????????????????? | +----------------------------------------------------+ Best States ------------- Heat Dissipation 35 Energy Generation 10 Energy Capacity 200 Matter Stores 300 Matter Capacity 300 Sight Range 16 Robot Scan Range 20 Terrain Scan Density 10 Resistance: KI 20 Resistance: TH 20 Resistance: EX 20 Resistance: EM 20 Resistance: I 20 Resistance: S 20 Resistance: P 20 Evasion (%) 62 Offensive Hacking 10 Item Schematics ----------------- None Robot Schematics ------------------ None Fabricated ------------ Nothing Alien Tech Used ----------------- None Achievements -------------- Crack Shot First Step to Greatness Risk Taker Shopping List Challenges ------------ None Game ------ Seed HeavyCargoStabilizer Manual? 0 Play Time 00:43:49 Cumulative 0.6 hours Start 2024.04.04 @ 21:42:24 End 2024.04.19 @ 21:33:47 Sessions 5 Manual Loads 0 Difficulty Adventurer Special Mode None Game No. 1 Rogue 0 Adventurer 1 Explorer 0 Win Type - Total 0 Types 0/0/0/0/0/0/0/0/0 Lore% 0 Gallery% 1 Achievement% 1 Wizard Run 0 Options --------- Layout 1 ASCII 0 Keyboard 0 Movement Mouse Keybinds 0 Fullscreen 1 Font 24/X11 Map View 50x40 Zoom Use 0% Tactical HUD 0 Map Filters NONE Filters NONE Steam 1 RUN: 65d27aae-0e70-40ea-9e6d-5f2bcc37c0f8